[Event "*** Titled Tuesday Blitz"]
[Site "Chess.com"]
[Date "2020.10.20"]
[Round "3"]
[White "Ranindu2003"]
[Black "chito89"]
[Result "0-1"]
[WhiteElo "2556"]
[BlackElo "2812"]
[TimeControl "180+1"]
[EndTime "10:29:19 PDT"]
[Termination "chito89 won on time"]

1. e4 {[%clk 0:03:00.5]} 1... e5 {[%clk 0:02:55.5]} 2. Nf3 {[%clk 0:02:59.8]}
2... Nc6 {[%clk 0:02:56]} 3. Bb5 {[%clk 0:02:59.8]} 3... a6 {[%clk 0:02:56.2]}
4. Ba4 {[%clk 0:02:59.9]} 4... Nf6 {[%clk 0:02:56.6]} 5. O-O {[%clk 0:03:00.4]}
5... b5 {[%clk 0:02:56.9]} 6. Bb3 {[%clk 0:03:00.2]} 6... Bb7 {[%clk 0:02:57.6]}
7. c3 {[%clk 0:02:49.3]} 7... Nxe4 {[%clk 0:02:49.4]} 8. d4 {[%clk 0:02:21.8]}
8... exd4 {[%clk 0:02:34.8]} 9. Re1 {[%clk 0:02:02.9]} 9... d5 {[%clk
0:02:34.7]} 10. Nxd4 {[%clk 0:01:51]} 10... Nxd4 {[%clk 0:02:32.5]} 11. Qxd4
{[%clk 0:01:45]} 11... c5 {[%clk 0:02:00.3]} 12. Qd1 {[%clk 0:00:52.2]} 12...
Be7 {[%clk 0:01:55.2]} 13. f3 {[%clk 0:00:52.3]} 13... Nf6 {[%clk 0:01:54.9]}
14. Qe2 {[%clk 0:00:51.7]} 14... Kf8 {[%clk 0:01:37.6]} 15. Bg5 {[%clk
0:00:44.5]} 15... c4 {[%clk 0:01:33.5]} 16. Bc2 {[%clk 0:00:43.2]} 16... Qb6+
{[%clk 0:01:34]} 17. Kh1 {[%clk 0:00:41.5]} 17... Re8 {[%clk 0:01:33.2]} 18. Nd2
{[%clk 0:00:32.1]} 18... h6 {[%clk 0:01:07.6]} 19. Bh4 {[%clk 0:00:31.4]} 19...
g5 {[%clk 0:01:01.8]} 20. Bg3 {[%clk 0:00:31.1]} 20... Bd6 {[%clk 0:00:58.7]}
21. Bxd6+ {[%clk 0:00:29.4]} 21... Qxd6 {[%clk 0:00:59.6]} 22. Qf2 {[%clk
0:00:30.2]} 22... Kg7 {[%clk 0:00:56.4]} 23. a4 {[%clk 0:00:30.1]} 23... b4
{[%clk 0:00:54.7]} 24. Qd4 {[%clk 0:00:29.8]} 24... b3 {[%clk 0:00:51.3]} 25.
Bf5 {[%clk 0:00:27.2]} 25... Qf4 {[%clk 0:00:46.8]} 26. Qxf4 {[%clk 0:00:14.4]}
26... gxf4 {[%clk 0:00:47.7]} 27. Nf1 {[%clk 0:00:13.9]} 27... Bc6 {[%clk
0:00:47.5]} 28. g3 {[%clk 0:00:13.8]} 28... Rxe1 {[%clk 0:00:39.6]} 29. Rxe1
{[%clk 0:00:13]} 29... Bxa4 {[%clk 0:00:40.5]} 30. gxf4 {[%clk 0:00:12.8]} 30...
Re8 {[%clk 0:00:41.1]} 31. Rd1 {[%clk 0:00:13.2]} 31... Re2 {[%clk 0:00:37.4]}
32. Rb1 {[%clk 0:00:09.4]} 32... Nh5 {[%clk 0:00:33.1]} 33. Bg4 {[%clk
0:00:08.6]} 33... Nxf4 {[%clk 0:00:32.7]} 34. Ng3 {[%clk 0:00:09.2]} 34... Rd2
{[%clk 0:00:31.5]} 35. Nf5+ {[%clk 0:00:09.1]} 35... Kf6 {[%clk 0:00:31.6]} 36.
Nd4 {[%clk 0:00:08.2]} 36... Nd3 {[%clk 0:00:29.6]} 37. Ra1 {[%clk 0:00:08.2]}
37... Nxb2 {[%clk 0:00:27.3]} 38. Bh3 {[%clk 0:00:07.2]} 38... Bb5 {[%clk
0:00:26.9]} 39. Bg2 {[%clk 0:00:07]} 39... Nd3 {[%clk 0:00:26]} 40. Rb1 {[%clk
0:00:07]} 40... b2 {[%clk 0:00:26]} 41. Bf1 {[%clk 0:00:07.1]} 41... Ba4 {[%clk
0:00:25.5]} 42. Kg1 {[%clk 0:00:06]} 42... Rd1 {[%clk 0:00:23.8]} 0-1

[Event "*** Titled Tuesday Blitz"]
[Site "Chess.com"]
[Date "2020.10.20"]
[Round "3"]
[White "SHIVACalypso"]
[Black "AlphaHero0"]
[Result "0-1"]
[WhiteElo "2334"]
[BlackElo "1979"]
[TimeControl "180+1"]
[EndTime "10:29:19 PDT"]
[Termination "AlphaHero0 won by checkmate"]

1. Nf3 {[%clk 0:03:00.9]} 1... Nc6 {[%clk 0:03:00.9]} 2. c4 {[%clk 0:02:56.3]}
2... e5 {[%clk 0:02:59.3]} 3. Nc3 {[%clk 0:02:55.4]} 3... Bb4 {[%clk 0:02:57.1]}
4. Nd5 {[%clk 0:02:53.1]} 4... a5 {[%clk 0:02:55.4]} 5. Nxb4 {[%clk 0:02:49.7]}
5... axb4 {[%clk 0:02:54.6]} 6. d3 {[%clk 0:02:39.8]} 6... Nf6 {[%clk
0:02:54.1]} 7. g3 {[%clk 0:02:34.2]} 7... O-O {[%clk 0:02:47.7]} 8. Bg2 {[%clk
0:02:33.5]} 8... d5 {[%clk 0:02:42.8]} 9. cxd5 {[%clk 0:02:31.9]} 9... Nxd5
{[%clk 0:02:43.7]} 10. O-O {[%clk 0:02:31.3]} 10... f6 {[%clk 0:02:25.4]} 11.
Bd2 {[%clk 0:02:20]} 11... Be6 {[%clk 0:02:21]} 12. Qc2 {[%clk 0:02:07.9]} 12...
Qd7 {[%clk 0:02:09.7]} 13. b3 {[%clk 0:02:02.1]} 13... Ra6 {[%clk 0:01:37.3]}
14. Rfc1 {[%clk 0:01:47.4]} 14... Rfa8 {[%clk 0:01:36.4]} 15. e3 {[%clk
0:01:25.7]} 15... h6 {[%clk 0:01:18.8]} 16. d4 {[%clk 0:01:24.6]} 16... exd4
{[%clk 0:01:07.6]} 17. Nxd4 {[%clk 0:01:25.5]} 17... Nxd4 {[%clk 0:01:06.3]} 18.
exd4 {[%clk 0:01:23.7]} 18... c6 {[%clk 0:01:06.3]} 19. Qc5 {[%clk 0:01:09.3]}
19... Ra5 {[%clk 0:00:59.2]} 20. Qc2 {[%clk 0:01:07.9]} 20... Qd6 {[%clk
0:00:45.1]} 21. a4 {[%clk 0:01:00.3]} 21... Ne7 {[%clk 0:00:25]} 22. Be3 {[%clk
0:00:54]} 22... Nd5 {[%clk 0:00:23.7]} 23. Qd2 {[%clk 0:00:48.7]} 23... Nc3
{[%clk 0:00:20.2]} 24. Rxc3 {[%clk 0:00:41.4]} 24... bxc3 {[%clk 0:00:19.4]} 25.
Qxc3 {[%clk 0:00:42.3]} 25... Bd5 {[%clk 0:00:17.3]} 26. Bf4 {[%clk 0:00:41.7]}
26... Qd7 {[%clk 0:00:16.6]} 27. Bf1 {[%clk 0:00:41.1]} 27... R5a7 {[%clk
0:00:15.7]} 28. a5 {[%clk 0:00:39.8]} 28... Qd8 {[%clk 0:00:14.4]} 29. b4 {[%clk
0:00:38.4]} 29... Qd7 {[%clk 0:00:14.3]} 30. Re1 {[%clk 0:00:30.6]} 30... Re8
{[%clk 0:00:12.2]} 31. Be3 {[%clk 0:00:30.1]} 31... Raa8 {[%clk 0:00:11.5]} 32.
Qc5 {[%clk 0:00:27.5]} 32... Re7 {[%clk 0:00:11.7]} 33. Rc1 {[%clk 0:00:26.7]}
33... Rae8 {[%clk 0:00:11.2]} 34. Bf4 {[%clk 0:00:24.1]} 34... Re1 {[%clk
0:00:09.7]} 35. Qc3 {[%clk 0:00:16.5]} 35... Rxc1 {[%clk 0:00:07.8]} 36. Qxc1
{[%clk 0:00:17.4]} 36... Bf3 {[%clk 0:00:07.3]} 37. Be3 {[%clk 0:00:14.7]} 37...
Kh8 {[%clk 0:00:06.1]} 38. Qc5 {[%clk 0:00:13.8]} 38... Bd5 {[%clk 0:00:05.3]}
39. Qb6 {[%clk 0:00:13.6]} 39... Qg4 {[%clk 0:00:04.5]} 40. Bg2 {[%clk
0:00:11.9]} 40... Qd1+ {[%clk 0:00:04.4]} 41. Bf1 {[%clk 0:00:11.9]} 41... Bc4
{[%clk 0:00:04.7]} 42. Kg2 {[%clk 0:00:11.6]} 42... Qxf1+ {[%clk 0:00:04.5]} 43.
Kf3 {[%clk 0:00:12.2]} 43... Bd5+ {[%clk 0:00:04.9]} 44. Kf4 {[%clk 0:00:12.4]}
44... Qg2 {[%clk 0:00:05]} 45. Kf5 {[%clk 0:00:07.1]} 45... Qe4# {[%clk
0:00:04.4]} 0-1

[Event "*** Titled Tuesday Blitz"]
[Site "Chess.com"]
[Date "2020.10.20"]
[Round "3"]
[White "GukeshDommaraju"]
[Black "Sashadav97"]
[Result "0-1"]
[WhiteElo "2824"]
[BlackElo "2629"]
[TimeControl "180+1"]
[EndTime "10:29:20 PDT"]
[Termination "Sashadav97 won by checkmate"]

1. d4 {[%clk 0:03:00.9]} 1... g6 {[%clk 0:03:00.4]} 2. e4 {[%clk 0:03:00.4]}
2... Bg7 {[%clk 0:03:00.7]} 3. Nc3 {[%clk 0:03:00.7]} 3... d6 {[%clk 0:03:00.9]}
4. Be3 {[%clk 0:03:00.9]} 4... a6 {[%clk 0:03:00.1]} 5. Qd2 {[%clk 0:03:00.9]}
5... b5 {[%clk 0:03:00.1]} 6. h4 {[%clk 0:03:00.6]} 6... h5 {[%clk 0:02:58.8]}
7. Nf3 {[%clk 0:02:56.4]} 7... Bb7 {[%clk 0:02:55.8]} 8. Ng5 {[%clk 0:02:56]}
8... Nd7 {[%clk 0:02:51.6]} 9. Bd3 {[%clk 0:02:54]} 9... c5 {[%clk 0:02:46.4]}
10. dxc5 {[%clk 0:02:21.1]} 10... Nxc5 {[%clk 0:02:43.6]} 11. Bxc5 {[%clk
0:02:03.7]} 11... dxc5 {[%clk 0:02:44.5]} 12. Qf4 {[%clk 0:02:03.8]} 12... Nh6
{[%clk 0:02:34.1]} 13. O-O-O {[%clk 0:01:51.3]} 13... Qb8 {[%clk 0:02:32.5]} 14.
Qe3 {[%clk 0:01:35]} 14... c4 {[%clk 0:02:13.4]} 15. Be2 {[%clk 0:01:33]} 15...
O-O {[%clk 0:02:11.9]} 16. f4 {[%clk 0:01:22.4]} 16... b4 {[%clk 0:02:06.1]} 17.
Nd5 {[%clk 0:01:21.7]} 17... Bxd5 {[%clk 0:02:04.9]} 18. Rxd5 {[%clk 0:01:20.3]}
18... c3 {[%clk 0:02:05]} 19. Bc4 {[%clk 0:01:16.9]} 19... cxb2+ {[%clk
0:02:02.9]} 20. Kb1 {[%clk 0:01:16.8]} 20... Qc7 {[%clk 0:02:03.4]} 21. Bb3
{[%clk 0:01:16.3]} 21... a5 {[%clk 0:02:01.2]} 22. Rc5 {[%clk 0:01:11.4]} 22...
Qa7 {[%clk 0:01:57.7]} 23. f5 {[%clk 0:00:49.8]} 23... Rac8 {[%clk 0:01:36]} 24.
Nxf7 {[%clk 0:00:22]} 24... Qxc5 {[%clk 0:01:08.1]} 25. Nxh6+ {[%clk 0:00:21.8]}
25... Kh8 {[%clk 0:01:00]} 26. Qg5 {[%clk 0:00:18.9]} 26... a4 {[%clk
0:00:47.9]} 27. Bxa4 {[%clk 0:00:18.5]} 27... b3 {[%clk 0:00:23.3]} 28. Bxb3
{[%clk 0:00:18.3]} 28... Rb8 {[%clk 0:00:23.6]} 29. Nf7+ {[%clk 0:00:11.2]}
29... Rxf7 {[%clk 0:00:20.5]} 30. Bxf7 {[%clk 0:00:10.5]} 30... Rd8 {[%clk
0:00:07.9]} 31. Qxg6 {[%clk 0:00:09.2]} 31... Qe3 {[%clk 0:00:07.5]} 32. Qxh5+
{[%clk 0:00:08.6]} 32... Bh6 {[%clk 0:00:07.8]} 33. a4 {[%clk 0:00:02.6]} 33...
Qc1+ {[%clk 0:00:05.8]} 34. Rxc1 {[%clk 0:00:01.6]} 34... bxc1=Q+ {[%clk
0:00:06.7]} 35. Ka2 {[%clk 0:00:02.5]} 35... Qxc2+ {[%clk 0:00:05.7]} 36. Ka3
{[%clk 0:00:03.4]} 36... Qc3+ {[%clk 0:00:04.9]} 37. Bb3 {[%clk 0:00:01.5]}
37... Qc1+ {[%clk 0:00:03.8]} 38. Kb4 {[%clk 0:00:01.7]} 38... Rb8+ {[%clk
0:00:04.3]} 39. Ka5 {[%clk 0:00:02.6]} 39... Qc5+ {[%clk 0:00:04.8]} 40. Ka6
{[%clk 0:00:03.5]} 40... Qb6# {[%clk 0:00:05.4]} 0-1

[Event "*** Titled Tuesday Blitz"]
[Site "Chess.com"]
[Date "2020.10.20"]
[Round "3"]
[White "LittlePeasant"]
[Black "plumalka"]
[Result "1-0"]
[WhiteElo "2801"]
[BlackElo "2422"]
[TimeControl "180+1"]
[EndTime "10:29:20 PDT"]
[Termination "LittlePeasant won by resignation"]

1. Nf3 {[%clk 0:03:00.9]} 1... c5 {[%clk 0:02:59.7]} 2. c4 {[%clk 0:02:59.4]}
2... Nc6 {[%clk 0:02:59.3]} 3. b3 {[%clk 0:02:59.9]} 3... e5 {[%clk 0:02:59]} 4.
Bb2 {[%clk 0:02:59.6]} 4... d6 {[%clk 0:02:59.2]} 5. e3 {[%clk 0:02:59.3]} 5...
g6 {[%clk 0:02:58.2]} 6. d4 {[%clk 0:02:59.4]} 6... exd4 {[%clk 0:02:58.1]} 7.
exd4 {[%clk 0:02:59.5]} 7... Bg7 {[%clk 0:02:58.5]} 8. Be2 {[%clk 0:02:59.8]}
8... Bg4 {[%clk 0:02:55.6]} 9. Nbd2 {[%clk 0:02:59.1]} 9... Nge7 {[%clk
0:02:48.2]} 10. Qc1 {[%clk 0:02:02.6]} 10... Bxf3 {[%clk 0:02:01]} 11. Nxf3
{[%clk 0:01:41.3]} 11... cxd4 {[%clk 0:02:00.8]} 12. O-O {[%clk 0:01:37.9]}
12... O-O {[%clk 0:01:54.8]} 13. Rd1 {[%clk 0:01:38.4]} 13... Nf5 {[%clk
0:01:54.5]} 14. Bd3 {[%clk 0:01:38.2]} 14... Nh4 {[%clk 0:01:46.5]} 15. Be4
{[%clk 0:01:29]} 15... Ne5 {[%clk 0:01:18.5]} 16. Nxd4 {[%clk 0:01:21.7]} 16...
Qd7 {[%clk 0:01:03.9]} 17. Qg5 {[%clk 0:00:56.5]} 17... Qg4 {[%clk 0:01:03.3]}
18. Qxg4 {[%clk 0:00:55.8]} 18... Nxg4 {[%clk 0:01:04.2]} 19. Bxb7 {[%clk
0:00:35.7]} 19... Rae8 {[%clk 0:00:58.1]} 20. Rab1 {[%clk 0:00:33.6]} 20... h5
{[%clk 0:00:50.2]} 21. g3 {[%clk 0:00:29.8]} 21... Nf5 {[%clk 0:00:43.7]} 22.
Nxf5 {[%clk 0:00:29.8]} 22... gxf5 {[%clk 0:00:44.6]} 23. Bxg7 {[%clk
0:00:29.1]} 23... Kxg7 {[%clk 0:00:45.5]} 24. Rxd6 {[%clk 0:00:28.9]} 24... Re2
{[%clk 0:00:45.2]} 25. Bf3 {[%clk 0:00:23.1]} 25... Rxa2 {[%clk 0:00:44.6]} 26.
Bxg4 {[%clk 0:00:23.5]} 26... fxg4 {[%clk 0:00:42.4]} 27. b4 {[%clk 0:00:17]}
27... Re8 {[%clk 0:00:42.3]} 28. Rd4 {[%clk 0:00:17.3]} 28... Ree2 {[%clk
0:00:41.6]} 29. Rf4 {[%clk 0:00:17.2]} 29... Rec2 {[%clk 0:00:32.3]} 30. c5
{[%clk 0:00:17.2]} 30... Kg6 {[%clk 0:00:32.1]} 31. Rd1 {[%clk 0:00:15.6]} 31...
Rab2 {[%clk 0:00:29.6]} 32. Kg2 {[%clk 0:00:15.2]} 32... Rd2 {[%clk 0:00:27.5]}
33. Rxd2 {[%clk 0:00:14.5]} 33... Rxd2 {[%clk 0:00:28.4]} 34. Rc4 {[%clk
0:00:15.3]} 34... Rd7 {[%clk 0:00:26.6]} 35. c6 {[%clk 0:00:15.4]} 35... Rc7
{[%clk 0:00:27.1]} 36. b5 {[%clk 0:00:15.7]} 36... Kf6 {[%clk 0:00:26.7]} 37. f3
{[%clk 0:00:16.6]} 37... Kg5 {[%clk 0:00:21]} 38. h4+ {[%clk 0:00:15.9]} 38...
Kf5 {[%clk 0:00:18.6]} 39. fxg4+ {[%clk 0:00:14.9]} 39... hxg4 {[%clk
0:00:18.7]} 40. Kf2 {[%clk 0:00:15.8]} 40... Rc8 {[%clk 0:00:16.1]} 41. c7
{[%clk 0:00:14]} 41... Ke6 {[%clk 0:00:15.4]} 42. Ke3 {[%clk 0:00:14.3]} 42...
Kd5 {[%clk 0:00:15.2]} 43. Rc1 {[%clk 0:00:12.8]} 43... Ke5 {[%clk 0:00:15.1]}
44. h5 {[%clk 0:00:11.8]} 44... f5 {[%clk 0:00:13.9]} 45. h6 {[%clk 0:00:11.1]}
45... Kf6 {[%clk 0:00:14.4]} 46. Kf4 {[%clk 0:00:12]} 46... Kg6 {[%clk
0:00:14.3]} 47. h7 {[%clk 0:00:12.5]} 47... Kxh7 {[%clk 0:00:14.4]} 48. Kxf5
{[%clk 0:00:13.4]} 48... Kg7 {[%clk 0:00:13.7]} 49. Ke6 {[%clk 0:00:13.9]} 1-0

[Event "*** Titled Tuesday Blitz"]
[Site "Chess.com"]
[Date "2020.10.20"]
[Round "3"]
[White "Rodalquilar"]
[Black "ChessWarrior7197"]
[Result "0-1"]
[WhiteElo "2720"]
[BlackElo "3015"]
[TimeControl "180+1"]
[EndTime "10:29:21 PDT"]
[Termination "ChessWarrior7197 won on time"]

1. d4 {[%clk 0:03:00.9]} 1... d5 {[%clk 0:03:00.6]} 2. Bf4 {[%clk 0:03:01.1]}
2... Nf6 {[%clk 0:03:01.1]} 3. e3 {[%clk 0:03:01.5]} 3... c5 {[%clk 0:03:01.7]}
4. Nf3 {[%clk 0:03:01.5]} 4... Nc6 {[%clk 0:03:02.3]} 5. Nbd2 {[%clk 0:03:01.9]}
5... Qb6 {[%clk 0:03:02.2]} 6. dxc5 {[%clk 0:03:02.3]} 6... Qxb2 {[%clk
0:03:01.9]} 7. Rb1 {[%clk 0:03:02.7]} 7... Qc3 {[%clk 0:03:02.5]} 8. Bb5 {[%clk
0:03:03]} 8... g6 {[%clk 0:03:02.8]} 9. O-O {[%clk 0:03:02.9]} 9... Bg7 {[%clk
0:03:02.7]} 10. Nb3 {[%clk 0:03:02.8]} 10... O-O {[%clk 0:03:01.8]} 11. Bxc6
{[%clk 0:03:03.2]} 11... bxc6 {[%clk 0:03:01.5]} 12. Be5 {[%clk 0:03:03.7]}
12... Qc4 {[%clk 0:02:55.9]} 13. Qd4 {[%clk 0:03:03.9]} 13... Qxd4 {[%clk
0:02:47]} 14. exd4 {[%clk 0:03:04.8]} 14... a5 {[%clk 0:02:46.4]} 15. Rfe1
{[%clk 0:02:45.4]} 15... Bf5 {[%clk 0:02:40.6]} 16. Re2 {[%clk 0:02:06.8]} 16...
Ne4 {[%clk 0:02:34.4]} 17. Bxg7 {[%clk 0:02:06.7]} 17... Kxg7 {[%clk 0:02:35.2]}
18. Rbe1 {[%clk 0:02:01.1]} 18... Nc3 {[%clk 0:02:26.2]} 19. Rxe7 {[%clk
0:01:59.1]} 19... Nxa2 {[%clk 0:02:21.9]} 20. Na1 {[%clk 0:01:49.7]} 20... a4
{[%clk 0:02:15.6]} 21. Ne5 {[%clk 0:01:50.1]} 21... Nb4 {[%clk 0:02:07.9]} 22.
Re2 {[%clk 0:01:25.4]} 22... Rfb8 {[%clk 0:01:36.5]} 23. Rxf7+ {[%clk
0:01:08.4]} 23... Kg8 {[%clk 0:01:35.4]} 24. g4 {[%clk 0:01:06.8]} 24... Bxg4
{[%clk 0:01:33.7]} 25. Re3 {[%clk 0:00:51.1]} 25... a3 {[%clk 0:01:29]} 26. Rg3
{[%clk 0:00:50.4]} 26... Bh5 {[%clk 0:01:20.5]} 27. Rc7 {[%clk 0:00:41]} 27...
Na6 {[%clk 0:01:03.3]} 28. Re7 {[%clk 0:00:29.8]} 28... Rb1+ {[%clk 0:00:59.3]}
29. Kg2 {[%clk 0:00:30.3]} 29... Rxa1 {[%clk 0:00:59.8]} 30. Nd7 {[%clk
0:00:30.5]} 30... Rf8 {[%clk 0:00:21.1]} 31. Nxf8 {[%clk 0:00:26.4]} 31... Kxf8
{[%clk 0:00:22]} 32. Ra7 {[%clk 0:00:27.1]} 32... Nb4 {[%clk 0:00:22.6]} 33. Rb3
{[%clk 0:00:26.8]} 33... Be2 {[%clk 0:00:03.2]} 34. Rxb4 {[%clk 0:00:20.3]}
34... Bb5 {[%clk 0:00:03.8]} 35. c4 {[%clk 0:00:06.5]} 35... dxc4 {[%clk
0:00:03.8]} 36. d5 {[%clk 0:00:07.4]} 36... a2 {[%clk 0:00:04.4]} 37. dxc6
{[%clk 0:00:04.4]} 37... Bxc6+ {[%clk 0:00:05.3]} 38. f3 {[%clk 0:00:04.3]}
38... Rb1 {[%clk 0:00:05.9]} 39. Rba4 {[%clk 0:00:02.6]} 39... Bxa4 {[%clk
0:00:05.5]} 0-1

[Event "*** Titled Tuesday Blitz"]
[Site "Chess.com"]
[Date "2020.10.20"]
[Round "3"]
[White "AntonovaNadezhda"]
[Black "zmeeed67"]
[Result "0-1"]
[WhiteElo "2072"]
[BlackElo "2339"]
[TimeControl "180+1"]
[EndTime "10:29:21 PDT"]
[Termination "zmeeed67 won on time"]

1. d4 {[%clk 0:03:00.9]} 1... Nc6 {[%clk 0:03:00.2]} 2. Nf3 {[%clk 0:02:59.9]}
2... d6 {[%clk 0:03:00.4]} 3. Nbd2 {[%clk 0:02:57.4]} 3... e5 {[%clk 0:02:58.6]}
4. c3 {[%clk 0:02:57]} 4... Nf6 {[%clk 0:02:57]} 5. e4 {[%clk 0:02:56.1]} 5...
Bg4 {[%clk 0:02:56.6]} 6. d5 {[%clk 0:02:55.3]} 6... Ne7 {[%clk 0:02:55.6]} 7.
h3 {[%clk 0:02:55.7]} 7... Bd7 {[%clk 0:02:55]} 8. Bd3 {[%clk 0:02:54.4]} 8...
Ng6 {[%clk 0:02:55.2]} 9. O-O {[%clk 0:02:52.5]} 9... Nf4 {[%clk 0:02:53]} 10.
Bc2 {[%clk 0:02:52]} 10... Be7 {[%clk 0:02:51.6]} 11. Re1 {[%clk 0:02:51.4]}
11... O-O {[%clk 0:02:50.8]} 12. Nf1 {[%clk 0:02:51.2]} 12... N6h5 {[%clk
0:02:49.8]} 13. Ng3 {[%clk 0:02:44]} 13... g6 {[%clk 0:02:46]} 14. Kh2 {[%clk
0:02:39.7]} 14... Qc8 {[%clk 0:02:41.1]} 15. Ng1 {[%clk 0:02:31]} 15... f5
{[%clk 0:02:37.6]} 16. Nxh5 {[%clk 0:02:26.9]} 16... Nxh5 {[%clk 0:02:28.8]} 17.
Bh6 {[%clk 0:02:09.3]} 17... Ng7 {[%clk 0:02:28]} 18. exf5 {[%clk 0:01:58.2]}
18... Bxf5 {[%clk 0:02:25.9]} 19. Re2 {[%clk 0:01:43.2]} 19... Qd8 {[%clk
0:02:13.2]} 20. Bxf5 {[%clk 0:01:39.5]} 20... gxf5 {[%clk 0:01:55]} 21. Nf3
{[%clk 0:01:33.5]} 21... Rf6 {[%clk 0:01:49.7]} 22. Bxg7 {[%clk 0:01:21.7]}
22... Kxg7 {[%clk 0:01:48.2]} 23. Ng5 {[%clk 0:01:22.2]} 23... Qd7 {[%clk
0:01:27.2]} 24. Qd3 {[%clk 0:01:08.5]} 24... Kh8 {[%clk 0:01:18]} 25. Rae1
{[%clk 0:01:03.4]} 25... Rg8 {[%clk 0:01:17.3]} 26. f4 {[%clk 0:00:56]} 26...
Rfg6 {[%clk 0:01:10.8]} 27. Ne6 {[%clk 0:00:49.5]} 27... e4 {[%clk 0:01:07]} 28.
Qd4+ {[%clk 0:00:45.9]} 28... Bf6 {[%clk 0:01:06.8]} 29. Qxa7 {[%clk 0:00:43.2]}
29... c6 {[%clk 0:01:01.3]} 30. c4 {[%clk 0:00:37]} 30... Bh4 {[%clk 0:00:59.7]}
31. Rf1 {[%clk 0:00:32.6]} 31... Bg3+ {[%clk 0:00:58.6]} 32. Kh1 {[%clk
0:00:31.6]} 32... Bh4 {[%clk 0:00:57.9]} 33. Qd4+ {[%clk 0:00:24]} 33... Bf6
{[%clk 0:00:57.5]} 34. Qe3 {[%clk 0:00:22.8]} 34... b5 {[%clk 0:00:53.1]} 35. b3
{[%clk 0:00:20.3]} 35... bxc4 {[%clk 0:00:52.3]} 36. bxc4 {[%clk 0:00:20.4]}
36... cxd5 {[%clk 0:00:51.5]} 37. cxd5 {[%clk 0:00:19.7]} 37... Qb5 {[%clk
0:00:49.3]} 38. Rfe1 {[%clk 0:00:18.5]} 38... Qxd5 {[%clk 0:00:48.4]} 39. Qb3
{[%clk 0:00:17.2]} 39... Qxb3 {[%clk 0:00:45.2]} 40. axb3 {[%clk 0:00:17.2]}
40... Bc3 {[%clk 0:00:45.6]} 41. Rb1 {[%clk 0:00:16.6]} 41... Rxe6 {[%clk
0:00:45]} 42. Rc2 {[%clk 0:00:15.2]} 42... Bb4 {[%clk 0:00:44]} 43. Rc4 {[%clk
0:00:14.4]} 43... Rb8 {[%clk 0:00:43.1]} 44. Rd1 {[%clk 0:00:13.1]} 44... Rb5
{[%clk 0:00:39.2]} 45. Rdd4 {[%clk 0:00:11.8]} 45... Bc5 {[%clk 0:00:36.8]} 46.
Rd5 {[%clk 0:00:10.6]} 46... e3 {[%clk 0:00:33.5]} 47. Rc1 {[%clk 0:00:07.5]}
47... Rxb3 {[%clk 0:00:29.1]} 48. Rxf5 {[%clk 0:00:06.4]} 48... e2 {[%clk
0:00:29.3]} 49. Re1 {[%clk 0:00:06.5]} 49... Bf2 {[%clk 0:00:28.5]} 0-1

[Event "*** Titled Tuesday Blitz"]
[Site "Chess.com"]
[Date "2020.10.20"]
[Round "3"]
[White "aisha_zakirova"]
[Black "atalz0"]
[Result "0-1"]
[WhiteElo "2147"]
[BlackElo "2413"]
[TimeControl "180+1"]
[EndTime "10:29:23 PDT"]
[Termination "atalz0 won on time"]

1. d4 {[%clk 0:03:00.6]} 1... d5 {[%clk 0:02:59.1]} 2. c4 {[%clk 0:02:59.7]}
2... e6 {[%clk 0:02:59.5]} 3. Nf3 {[%clk 0:02:58.6]} 3... Nf6 {[%clk 0:02:57.8]}
4. Nc3 {[%clk 0:02:58]} 4... c5 {[%clk 0:02:58.3]} 5. cxd5 {[%clk 0:02:56.4]}
5... Nxd5 {[%clk 0:02:59]} 6. e4 {[%clk 0:02:52.4]} 6... Nxc3 {[%clk 0:02:59.4]}
7. bxc3 {[%clk 0:02:51.3]} 7... cxd4 {[%clk 0:02:59.2]} 8. cxd4 {[%clk
0:02:51.1]} 8... Bb4+ {[%clk 0:02:59.8]} 9. Bd2 {[%clk 0:02:50.1]} 9... Bxd2+
{[%clk 0:03:00.4]} 10. Qxd2 {[%clk 0:02:49.7]} 10... O-O {[%clk 0:03:01]} 11.
Be2 {[%clk 0:02:45.4]} 11... b6 {[%clk 0:03:01.1]} 12. O-O {[%clk 0:02:44.2]}
12... Bb7 {[%clk 0:03:01.7]} 13. Qd3 {[%clk 0:02:40.7]} 13... Nd7 {[%clk
0:03:01.4]} 14. e5 {[%clk 0:02:37.1]} 14... h6 {[%clk 0:02:55.5]} 15. Rac1
{[%clk 0:02:31.4]} 15... Rc8 {[%clk 0:02:55]} 16. Rxc8 {[%clk 0:02:26.8]} 16...
Qxc8 {[%clk 0:02:55.9]} 17. Nd2 {[%clk 0:02:23.2]} 17... Rd8 {[%clk 0:02:52.4]}
18. Qg3 {[%clk 0:02:19.3]} 18... Qc2 {[%clk 0:02:42.4]} 19. Qh4 {[%clk
0:02:10.4]} 19... g5 {[%clk 0:02:16.8]} 20. Qxh6 {[%clk 0:01:52.9]} 20... Qxd2
{[%clk 0:02:16.9]} 21. Bh5 {[%clk 0:01:39.6]} 21... Qf4 {[%clk 0:01:50.7]} 22.
Bxf7+ {[%clk 0:00:52.8]} 22... Kxf7 {[%clk 0:01:37.2]} 23. Qh7+ {[%clk
0:00:48.8]} 23... Kf8 {[%clk 0:01:24.6]} 24. Qh8+ {[%clk 0:00:46.6]} 24... Ke7
{[%clk 0:01:24.2]} 25. Qg7+ {[%clk 0:00:45.7]} 25... Qf7 {[%clk 0:01:23.3]} 26.
Qxg5+ {[%clk 0:00:44.5]} 26... Ke8 {[%clk 0:01:23.5]} 27. f4 {[%clk 0:00:32.1]}
27... Be4 {[%clk 0:00:44.5]} 28. f5 {[%clk 0:00:21]} 28... exf5 {[%clk
0:00:36.5]} 29. g4 {[%clk 0:00:14.8]} 29... Nf8 {[%clk 0:00:16.8]} 30. gxf5
{[%clk 0:00:14.2]} 30... Rxd4 {[%clk 0:00:15.2]} 31. e6 {[%clk 0:00:12.8]} 31...
Qh7 {[%clk 0:00:07.8]} 32. Rc1 {[%clk 0:00:10.1]} 32... Nxe6 {[%clk 0:00:05.9]}
33. Rc8+ {[%clk 0:00:09.1]} 33... Nd8 {[%clk 0:00:05.4]} 34. f6 {[%clk
0:00:04.8]} 34... Qg6 {[%clk 0:00:05.2]} 35. f7+ {[%clk 0:00:03.8]} 35... Kxf7
{[%clk 0:00:04.7]} 36. Qxg6+ {[%clk 0:00:00.4]} 36... Kxg6 {[%clk 0:00:03.8]}
37. Rc7 {[%clk 0:00:01.3]} 37... a5 {[%clk 0:00:03.3]} 0-1